bitfinex/quotes_SOLUSD_20251214
["timestamp","ask_amount","ask_price","bid_price","bid_amount"]
[1765707494058,0.7,131.59,131.56,11.06853114]
[1765707494255,5.03147425,131.58,131.56,11.06853114]
[1765707494439,0.7,131.59,131.56,11.06853114]
[1765707494639,5.03136829,131.58,131.56,11.06853114]
[1765707494867,0.7,131.59,131.56,11.06853114]
[1765707495072,5.03137782,131.58,131.56,11.06853114]
[1765707495253,0.7,131.59,131.56,7.60109455]
[1765707495454,5.03141143,131.58,131.56,11.06853114]
[1765707495653,0.7,131.59,131.56,11.06853114]
[1765707495856,5.03228818,131.58,131.56,11.06853114]
[1765707496173,0.7,131.59,131.56,7.60109455]
[1765707496354,5.03263176,131.58,131.56,11.06853114]
[1765707496554,5.03301438,131.59,131.57,3.46702199]
[1765707496764,0.7,131.6,131.57,3.46702199]
[1765707496942,5.03310046,131.59,131.57,3.46702199]
[1765707497147,0.7,131.6,131.57,3.46702199]
[1765707497356,5.03251673,131.59,131.57,3.46702199]
[1765707497573,0.7,131.6,131.57,11.06736247]
[1765707497755,5.03251673,131.59,131.57,11.06736247]
[1765707497959,0.7,131.6,131.57,11.06736247]
[1765707498272,5.03251673,131.59,131.57,11.06736247]
[1765707498450,0.7,131.6,131.57,11.06736247]
[1765707498650,5.0319379,131.59,131.57,11.06736247]
[1765707498958,0.7,131.6,131.57,7.60046352]
[1765707499162,5.03031042,131.59,131.57,7.60046352]
[1765707499368,0.7,131.6,131.57,7.60046352]
[1765707499663,5.03009371,131.59,131.57,7.60046352]
[1765707499860,0.7,131.6,131.57,7.60046352]
[1765707500068,5.03009278,131.59,131.57,3.46702199]
[1765707500268,0.7,131.6,131.57,3.46702199]
[1765707500570,5.02907007,131.59,131.57,3.46702199]
[1765707501177,5.02907007,131.59,131.57,11.06743237]
[1765707501377,5.72907007,131.59,131.57,11.06743237]
[1765707501549,0.7,131.59,131.57,11.06743237]
[1765707501750,5.72907007,131.59,131.57,7.60041038]
[1765707501968,0.7,131.59,131.57,7.60041038]
[1765707503350,7.59844416,131.61,131.57,3.46702199]
[1765707503548,5.02670979,131.61,131.6,3.46702199]
[1765707503768,0.7,131.62,131.6,3.46702199]
[1765707503966,5.02670979,131.61,131.6,3.46702199]
[1765707504272,11.06294817,131.65,131.6,3.46702199]
[1765707504476,5.72120489,131.64,131.6,3.92702199]
[1765707504771,5.72120489,131.65,131.62,3.46702199]
[1765707505080,5.02120489,131.64,131.62,3.46702199]
[1765707505255,0.7,131.65,131.63,7.59705234]
[1765707505579,5.02120489,131.66,131.64,3.46702199]
[1765707505787,5.21978428,131.7,131.65,6.93404398]
[1765707505959,0.2,131.7,131.69,3.46702199]
[1765707506164,5.92139887,131.73,131.72,21.85703612]
[1765707506165,1e-08,131.73,131.72,21.85703612]
[1765707506345,1e-08,131.73,131.72,16.51411319]
[1765707506549,1e-08,131.73,131.72,3.46702199]
[1765707506750,1e-08,131.73,131.72,6.50688215]
[1765707506975,1e-08,131.73,131.72,19.55397335]
[1765707507181,1e-08,131.73,131.72,32.1152634]
[1765707507480,1e-08,131.73,131.72,39.70712492]
[1765707507656,0.2,131.75,131.72,58.68677873]
[1765707507855,0.2,131.75,131.74,4.42346272]
[1765707508384,0.2,131.75,131.74,2.21173136]
[1765707509469,0.2,131.75,131.74,12.01417169]
[1765707509875,0.2,131.75,131.74,9.80244033]
[1765707510295,0.2,131.75,131.74,12.01417169]
[1765707510493,0.2,131.75,131.74,7.59070897]
[1765707510792,0.2,131.75,131.74,12.01417169]
[1765707512294,0.2,131.84,131.77,13.0470912]
[1765707512470,3.95887683,131.9,131.83,4.42346272]
[1765707512471,0.7,131.9,131.83,4.42346272]
[1765707512670,0.7,131.9,131.88,2.21173136]
[1765707513090,0.7,131.9,131.87,2.21173136]
[1765707513394,8.80994492,131.89,131.77,13.0470912]
[1765707513590,2.21173136,131.86,131.8,2.21173136]
[1765707513772,7.58437618,131.85,131.8,2.21173136]
[1765707513975,2.21173136,131.84,131.79,18.11905607]
[1765707514177,2.91173136,131.84,131.79,18.11905607]
[1765707514375,0.7,131.83,131.79,9.79905607]
[1765707514687,0.7,131.83,131.78,9.80005686]
[1765707514875,0.7,131.83,131.79,9.79955314]
[1765707515775,0.7,131.83,131.8,2.21173136]
[1765707517899,0.7,131.83,131.79,7.58782178]
[1765707517900,0.7,131.83,131.79,2.21173136]
[1765707519199,0.7,131.83,131.79,9.79954148]
[1765707519398,50.0,131.82,131.81,2.21173136]
[1765707519770,0.7,131.83,131.81,2.21173136]
[1765707519979,0.7,131.83,131.82,5.5263955]
[1765707520389,0.7,131.85,131.82,5.5263955]
[1765707521396,0.7,131.85,131.82,13.11231357]
[1765707522195,13.81084796,131.85,131.8,13.11313934]
[1765707522486,13.81084796,131.85,131.81,7.58659398]
[1765707522784,0.7,131.84,131.81,7.58659398]
[1765707523389,5.5263955,131.83,131.74,46.27354486]
[1765707523605,6.2263955,131.82,131.77,5.5263955]
[1765707524115,0.7,131.81,131.78,7.58797738]
[1765707524280,0.7,131.81,131.78,13.11437288]
[1765707525387,0.7,131.81,131.79,7.58773542]
[1765707525609,0.7,131.81,131.79,13.11413092]
[1765707526120,0.7,131.83,131.79,7.58773542]
[1765707526415,0.7,131.83,131.8,5.5263955]
[1765707527196,0.7,131.83,131.81,7.58667779]
[1765707527626,0.7,131.85,131.81,13.11307329]
[1765707527925,0.7,131.85,131.83,5.5263955]
[1765707528284,0.7,131.85,131.81,26.55337227]
[1765707528517,0.7,131.85,131.81,32.07976777]
[1765707529327,0.7,131.85,131.83,7.58539594]
[1765707529536,0.7,131.85,131.82,13.11231964]
[1765707530539,0.7,131.85,131.83,7.58546251]
[1765707530754,0.7,131.85,131.83,13.11185801]
[1765707532416,0.7,131.85,131.79,26.55740192]
[1765707532622,0.7,131.85,131.83,5.5263955]
[1765707533230,0.7,131.85,131.79,26.55740192]
[1765707533430,0.7,131.85,131.83,13.1118076]
[1765707535330,0.7,131.85,131.82,5.5263955]
[1765707536261,0.7,131.85,131.83,5.5263955]
[1765707536551,0.7,131.85,131.83,13.11156093]
[1765707536758,0.67,131.87,131.84,5.5263955]
[1765707536955,13.0470912,131.89,131.85,5.5263955]
[1765707537158,0.67,131.9,131.87,5.5263955]
[1765707538553,0.67,131.9,131.87,13.10945566]
[1765707539753,0.67,131.9,131.83,26.54934384]
[1765707539954,0.67,131.9,131.87,5.5263955]
[1765707540788,0.67,131.9,131.87,7.58321703]
[1765707542457,5.5263955,131.89,131.84,5.5263955]
[1765707542658,0.67,131.88,131.84,5.5263955]
[1765707543156,3.1963955,131.89,131.85,7.5839792]
[1765707543532,8.14588218,131.89,131.85,7.5839792]
[1765707543832,4.94948668,131.89,131.85,7.5839792]
[1765707544033,5.5263955,131.89,131.85,7.5839792]
[1765707544229,18.0579776,131.89,131.85,7.5839792]
[1765707544432,13.10849092,131.89,131.85,7.5839792]
[1765707544640,13.10849092,131.89,131.85,13.1103747]
[1765707544843,13.10849092,131.89,131.85,7.5839792]
[1765707545043,0.67,131.88,131.85,7.5839792]
[1765707545244,10.48914395,131.87,131.82,8.3]
[1765707545444,4.96274845,131.86,131.82,13.8263955]
[1765707545641,11.15914395,131.87,131.82,13.8263955]
[1765707545951,4.96274845,131.86,131.82,13.8263955]
[1765707546148,5.63274845,131.86,131.83,7.5853374]
[1765707546362,5.63274845,131.85,131.83,7.5853374]
[1765707546558,0.67,131.85,131.83,7.5853374]
[1765707547148,4.98046542,131.84,131.83,7.5853374]
[1765707548852,5.65046542,131.84,131.77,22.78509854]
[1765707549053,4.98046542,131.83,131.78,0.67]
[1765707549272,4.98046542,131.82,131.81,7.58667779]
[1765707549678,4.98046542,131.82,131.81,8.25667779]
[1765707550153,4.98046542,131.82,131.81,13.78307329]
[1765707550348,4.98046542,131.82,131.81,8.25667779]
[1765707550549,4.98046542,131.82,131.81,13.78307329]
[1765707551149,4.98046542,131.82,131.81,19.30946879]
[1765707551352,4.98046542,131.82,131.81,13.78307329]
[1765707552751,6.15850342,131.86,131.81,32.74976777]
[1765707552950,5.02542718,131.85,131.83,5.5263955]
[1765707553151,5.02542718,131.84,131.83,5.5263955]
[1765707554081,5.02542718,131.84,131.83,9.79552482]
[1765707554671,5.69542718,131.84,131.79,18.96889759]
[1765707554978,11.8539306,131.83,131.78,2.87999801]
[1765707555174,5.02542718,131.82,131.77,29.48183756]
[1765707555487,7.23542519,131.81,131.74,6.15850342]
[1765707555791,11.1839306,131.8,131.77,7.58847157]
[1765707556073,5.02542718,131.79,131.76,7.58955676]
[1765707556278,5.02542718,131.78,131.76,7.58955676]
[1765707556477,5.02542718,131.77,131.76,9.79955477]
[1765707556883,5.02542718,131.77,131.76,7.58955676]
[1765707557585,0.67,131.79,131.76,28.77344669]
[1765707557885,5.02454536,131.78,131.77,2.20999801]
[1765707558091,5.02454536,131.78,131.77,9.7989788]
[1765707558600,5.02454536,131.78,131.77,7.58898079]
[1765707559260,0.67,131.79,131.77,7.58898079]
[1765707559898,0.67,131.79,131.76,18.97389192]
[1765707560284,5.53145512,131.81,131.77,8.3]
[1765707560482,0.67,131.79,131.77,8.3]
[1765707560865,0.67,131.79,131.78,7.58840491]
[1765707561070,5.02208072,131.8,131.78,7.58840491]
[1765707561277,5.02149106,131.8,131.78,7.58840491]
[1765707561486,5.53145512,131.82,131.78,7.58840491]
[1765707561792,5.69165008,131.81,131.78,74.31986003]
[1765707562095,5.02164926,131.8,131.77,15.88882377]
[1765707562292,0.67,131.8,131.77,15.88882377]
[1765707562593,0.67,131.8,131.73,126.25703612]
[1765707562594,5.53145512,131.78,131.73,0.7]
[1765707562795,5.53145512,131.78,131.73,14.53145512]
[1765707562995,5.53145512,131.78,131.74,7.59070897]
[1765707563372,7.58839704,131.79,131.74,7.59070897]
[1765707563773,5.53145512,131.78,131.74,7.59070897]
[1765707564283,5.53145512,131.78,131.74,8.29070897]
[1765707564677,0.67,131.77,131.74,8.29070897]
[1765707564876,0.67,131.77,131.74,7.59070897]
[1765707566371,0.67,131.77,131.74,32.78893652]
[1765707567002,0.67,131.77,131.74,27.2574814]
[1765707567198,7.58671466,131.81,131.75,5.53145512]
[1765707567509,6.1711954,131.8,131.75,5.53145512]
[1765707567682,5.53145512,131.79,131.74,32.09893652]
[1765707567888,8.99121207,131.78,131.74,26.5674814]
[1765707568199,9.70121207,131.78,131.74,87.7674814]
[1765707568404,0.71,131.77,131.74,87.7674814]
[1765707568702,9.70121207,131.82,131.76,8.99121207]
[1765707568873,0.71,131.82,131.78,8.99121207]
[1765707569074,0.71,131.81,131.78,8.99121207]
[1765707569295,0.71,131.81,131.77,17.29121207]
[1765707569477,0.71,131.81,131.77,17.98121207]
[1765707570297,0.71,131.81,131.78,7.58840491]
[1765707575082,9.70121207,131.81,131.78,7.58840491]
[1765707575581,0.71,131.8,131.78,7.58840491]
[1765707576588,8.99121207,131.81,131.78,7.58840491]
[1765707576784,8.99121207,131.8,131.78,7.58840491]
[1765707576989,8.99121207,131.79,131.75,7.59008014]
[1765707577294,8.99121207,131.77,131.74,7.59054385]
[1765707577495,9.70121207,131.77,131.74,7.59054385]
[1765707577701,0.71,131.76,131.74,7.59054385]
[1765707579405,9.70121207,131.78,131.75,0.69]
[1765707579592,0.71,131.78,131.75,0.69]
[1765707579790,0.71,131.78,131.74,36.24852835]
[1765707580001,0.71,131.78,131.74,30.0251841]
[1765707580202,0.71,131.78,131.75,0.69]
[1765707580411,0.71,131.78,131.76,7.58955676]
[1765707582808,3.45786782,131.79,131.76,0.69]
[1765707583015,0.71,131.79,131.76,0.69]
[1765707583209,4.16786782,131.79,131.76,0.69]
[1765707583413,4.16786782,131.79,131.75,95.35279127]
[1765707583599,4.16786782,131.79,131.75,96.04279127]
[1765707587603,4.16786782,131.79,131.75,95.35279127]
[1765707587805,4.16786782,131.79,131.76,8.27920517]
[1765707589716,0.71,131.78,131.76,7.58920517]
[1765707590132,0.71,131.78,131.75,7.58732639]
[1765707590133,3.45786782,131.77,131.75,7.58732639]
[1765707590428,8.2985291,131.78,131.73,15.89090417]
[1765707590600,3.45786782,131.76,131.73,15.89090417]
[1765707590809,3.45786782,131.76,131.74,7.59065745]
[1765707591029,4.16786782,131.76,131.74,7.59065745]
[1765707591791,29.44486381,131.8,131.74,7.59065745]
[1765707591998,3.45786782,131.78,131.75,0.69]
[1765707592230,3.45786782,131.78,131.74,11.73852527]
[1765707592434,0.71,131.77,131.74,11.73852527]
[1765707593377,0.71,131.77,131.74,51.35021659]
[1765707593938,0.71,131.77,131.74,112.55021659]
[1765707594295,0.71,131.77,131.74,109.09234877]
[1765707594513,0.71,131.77,131.74,88.45742988]
[1765707594927,0.71,131.77,131.74,93.4790051]
[1765707595541,4.16786782,131.77,131.74,74.50223267]
[1765707595821,4.16786782,131.77,131.74,69.48065745]
[1765707596217,4.16786782,131.77,131.74,8.28065745]
[1765707596924,0.71,131.77,131.74,8.28065745]
[1765707598222,0.71,131.77,131.74,8.26065745]
[1765707598223,3.45786782,131.77,131.74,8.26065745]
[1765707598413,4.16786782,131.77,131.74,8.26065745]
[1765707599827,5.03463111,131.76,131.74,8.26065745]
[1765707600204,4.16786782,131.77,131.74,8.26065745]
[1765707600431,5.03584837,131.76,131.74,8.26065745]
[1765707600608,4.16786782,131.77,131.74,8.26065745]
[1765707600927,9.2037948,131.76,131.73,24.09606629]
[1765707601133,3.45786782,131.74,131.71,15.89223411]
[1765707601511,0.71,131.73,131.71,15.89223411]
[1765707602022,4.16786782,131.73,131.71,8.3]
[1765707602605,3.45786782,131.72,131.71,8.3]
[1765707602825,3.45786782,131.72,131.69,0.1]
[1765707602826,4.16786782,131.72,131.69,0.1]
[1765707603016,3.45786782,131.7,131.69,0.1]
[1765707603216,5.74235903,131.71,131.69,0.1]
[1765707603217,0.71,131.71,131.69,0.1]
[1765707603431,20.67282684,131.7,131.69,0.1]
[1765707603639,25.70518587,131.7,131.69,0.1]
[1765707603806,22.24731805,131.7,131.69,0.1]
[1765707604006,3.45786782,131.71,131.69,0.1]
[1765707604205,4.16786782,131.71,131.69,0.1]
[1765707604408,3.45786782,131.71,131.69,0.1]
[1765707604654,4.16786782,131.71,131.69,0.1]
[1765707604835,3.45786782,131.71,131.69,0.1]
[1765707605131,8.48382934,131.72,131.69,0.1]
[1765707605341,9.19382934,131.72,131.69,0.1]
[1765707605528,0.71,131.71,131.69,0.1]
[1765707607412,14.61383659,131.76,131.7,0.67]
[1765707607614,3.45786782,131.74,131.7,0.67]
[1765707607821,9.18471002,131.75,131.7,4.12786782]
[1765707608251,9.18471002,131.75,131.71,0.67]
[1765707609136,9.18471002,131.75,131.72,7.59186152]
[1765707609655,8.47471002,131.75,131.72,7.59186152]
[1765707609847,0.71,131.74,131.72,7.59186152]
[1765707610342,13.7570912,131.77,131.73,4.12786782]
[1765707610541,3.45786782,131.78,131.73,4.12786782]
[1765707610749,4.16786782,131.78,131.73,0.67]
[1765707610916,0.71,131.77,131.73,0.67]
[1765707611327,3.45786782,131.78,131.73,12.44786782]
[1765707611529,3.45786782,131.77,131.73,8.99]
[1765707611737,4.16786782,131.77,131.73,8.99]
[1765707611934,0.71,131.76,131.73,8.99]
[1765707612330,3.45786782,131.77,131.74,8.26070897]
[1765707612533,4.16786782,131.77,131.74,7.59070897]
[1765707612824,3.45786782,131.77,131.74,7.59070897]
[1765707613031,4.16786782,131.77,131.74,8.26070897]
[1765707614122,0.71,131.77,131.74,8.26070897]
[1765707614518,0.71,131.79,131.75,0.67]
[1765707614739,3.45786782,131.79,131.75,0.67]
[1765707614944,4.16786782,131.79,131.75,0.67]
[1765707615148,0.71,131.78,131.75,0.67]
[1765707615329,4.16786782,131.78,131.75,0.67]
[1765707615532,4.16786782,131.78,131.75,8.25966579]
[1765707616243,0.71,131.78,131.75,8.25966579]
[1765707616443,0.71,131.84,131.76,0.67]
[1765707616658,0.71,131.84,131.78,13.0470912]
[1765707616831,0.71,131.84,131.8,3.45786782]
[1765707617029,4.16786782,131.86,131.81,3.45786782]
[1765707617248,4.16786782,131.86,131.79,0.95432314]
[1765707617447,9.18730158,131.86,131.81,3.45786782]
[1765707617638,9.18730158,131.86,131.82,7.58610226]
[1765707617840,5.72943376,131.86,131.82,11.71397008]
[1765707618046,0.71,131.86,131.83,4.12786782]
[1765707618235,0.71,131.86,131.83,0.67]
[1765707618438,0.71,131.86,131.83,4.12786782]
[1765707618956,0.71,131.86,131.83,8.25495379]
[1765707620259,0.71,131.87,131.83,8.25495379]
[1765707620428,4.16786782,131.87,131.83,8.25495379]
[1765707620627,0.71,131.87,131.83,8.25495379]
[1765707620929,4.16786782,131.87,131.83,8.25495379]
[1765707621434,0.71,131.89,131.84,4.12786782]
[1765707621639,4.16786782,131.89,131.84,4.12786782]
[1765707621840,4.16786782,131.89,131.85,0.67]
[1765707622040,3.45786782,131.87,131.84,22.77990812]
[1765707622253,3.45786782,131.85,131.8,0.67]
[1765707622425,3.45786782,131.85,131.8,4.12786782]
[1765707622628,0.71,131.84,131.81,13.7570912]
[1765707622837,0.71,131.84,131.81,14.4270912]
[1765707623261,0.71,131.84,131.82,7.58591321]
[1765707625556,7.58396956,131.86,131.82,7.58591321]
[1765707625737,0.66,131.85,131.82,7.58591321]
[1765707626555,0.66,131.85,131.82,8.27591321]
[1765707626853,7.58338923,131.87,131.82,24.66924736]
[1765707627058,0.66,131.87,131.83,4.14786782]
[1765707627259,0.66,131.87,131.84,4.14786782]
[1765707627466,0.66,131.87,131.84,17.19495902]
[1765707627959,3.45786782,131.88,131.84,13.0470912]
[1765707628255,4.11786782,131.87,131.83,8.99]
[1765707628849,0.66,131.88,131.84,8.27490711]
[1765707629046,0.66,131.88,131.84,11.73277493]
[1765707629250,0.66,131.88,131.85,0.69]
[1765707629762,0.66,131.88,131.85,13.7370912]
[1765707629967,0.66,131.88,131.86,7.583801]
[1765707630358,2.86961716,131.88,131.85,69.4742022]
[1765707630561,2.86961716,131.88,131.85,68.7842022]
[1765707631573,2.86961716,131.89,131.85,69.4742022]
[1765707631940,0.66,131.88,131.85,69.4742022]
[1765707632554,0.66,131.88,131.85,85.86561469]
[1765707632955,2.20961716,131.9,131.86,0.69]
[1765707633450,2.86961716,131.91,131.86,25.67779566]
[1765707633646,0.66,131.93,131.87,2.20961716]
[1765707633853,0.66,131.93,131.87,11.19961716]
[1765707634064,0.66,131.93,131.88,8.27265089]
[1765707634264,2.20961716,131.91,131.88,7.58265089]
[1765707634462,8.2399065,131.93,131.87,8.3]
[1765707634463,2.20961716,131.9,131.87,8.3]
[1765707634701,2.20961716,131.88,131.86,22.7781785]
[1765707634971,0.28432314,131.86,131.79,8.27745021]
[1765707635276,2.20961716,131.83,131.79,7.58745021]
[1765707635452,2.20961716,131.83,131.79,8.27745021]
[1765707635644,2.86961716,131.83,131.79,8.27745021]
[1765707636045,2.20961716,131.84,131.8,0.69]
[1765707636565,2.20961716,131.83,131.8,0.69]
[1765707637875,2.20961716,131.83,131.8,8.27681747]
[1765707638049,7.58400735,131.86,131.81,2.20961716]
[1765707638371,2.20961716,131.86,131.81,0.69]
[1765707638571,2.20961716,131.86,131.82,0.69]
[1765707638946,2.86961716,131.86,131.82,0.69]
[1765707639346,2.20961716,131.84,131.8,34.854951]
[1765707639743,2.86961716,131.84,131.8,35.544951]
[1765707640683,9.79345578,131.86,131.81,0.69]
[1765707640858,10.45345578,131.86,131.81,0.69]
[1765707641173,0.66,131.85,131.81,0.69]
[1765707641574,2.86961716,131.85,131.81,0.69]
[1765707641766,2.20961716,131.84,131.8,15.88681747]
[1765707642076,2.86961716,131.84,131.8,16.57681747]
[1765707643255,0.66,131.83,131.8,15.88681747]
[1765707643458,0.66,131.83,131.8,16.57681747]
[1765707645660,2.86961716,131.84,131.8,16.57681747]
[1765707645860,0.66,131.84,131.8,16.57681747]
[1765707646163,2.86961716,131.84,131.8,16.57681747]
[1765707647276,2.86961716,131.84,131.8,77.77681747]
[1765707647483,0.66,131.84,131.8,77.77681747]
[1765707647862,2.86961716,131.84,131.8,77.77681747]
[1765707652249,27.76800968,131.87,131.8,77.77681747]
[1765707652250,17.33806906,131.86,131.81,0.69]
[1765707652455,2.20961716,131.85,131.81,0.69]
[1765707652655,2.20961716,131.84,131.8,77.08681747]
[1765707652852,2.86961716,131.84,131.8,77.77681747]
[1765707653060,2.20961716,131.84,131.8,77.77681747]
[1765707653260,2.86961716,131.84,131.8,77.77681747]
[1765707653687,2.20961716,131.81,131.76,18.97326355]
[1765707653867,0.66,131.83,131.79,7.58780938]
[1765707654057,2.20961716,131.82,131.79,7.58780938]
[1765707654251,2.20961716,131.81,131.78,7.58819887]
[1765707654458,2.20961716,131.8,131.76,8.27899878]
[1765707654770,2.86961716,131.8,131.76,0.69]
[1765707654951,0.66,131.8,131.75,21.18422985]
[1765707655158,2.86961716,131.81,131.78,7.58795973]
[1765707655376,0.66,131.81,131.78,7.58795973]
[1765707655587,0.66,131.81,131.78,8.27795973]
[1765707659182,5.67420057,131.82,131.78,8.27795973]
[1765707659389,0.66,131.81,131.78,8.27795973]
[1765707659588,5.01420057,131.82,131.79,0.69]
[1765707659787,7.23454418,131.83,131.79,61.89]
[1765707659981,7.23454418,131.83,131.79,63.40961716]
[1765707659982,5.68492702,131.83,131.79,63.40961716]
[1765707660185,0.66,131.83,131.8,0.69]
[1765707660562,2.86961716,131.83,131.79,61.2]
[1765707660756,2.86961716,131.83,131.79,61.89]
[1765707661174,2.20961716,131.8,131.79,61.2]
[1765707661367,7.23454418,131.81,131.79,61.2]
[1765707661568,2.20961716,131.8,131.79,61.2]
[1765707661768,2.86961716,131.8,131.79,61.2]
[1765707661994,0.66,131.8,131.79,61.2]
[1765707662664,5.02492702,131.81,131.79,68.78774963]
[1765707663287,7.89454418,131.82,131.79,68.78774963]
[1765707664066,2.86961716,131.81,131.79,61.2]
[1765707664572,0.66,131.8,131.79,61.2]
[1765707665091,2.86961716,131.8,131.75,16.57991832]
[1765707665389,2.20961716,131.79,131.76,8.27945977]
[1765707665689,5.02759562,131.8,131.77,8.27897752]
[1765707665864,5.68759562,131.8,131.77,8.27897752]
[1765707667094,5.02759562,131.8,131.77,8.27897752]
[1765707667296,7.23569018,131.81,131.77,8.27897752]
[1765707667491,7.89569018,131.81,131.78,0.69]
[1765707668577,2.20961716,131.82,131.78,10.48795329]
[1765707668801,7.8952448,131.82,131.78,8.27833613]
[1765707670105,7.2352448,131.82,131.78,8.27833613]
[1765707670304,7.8952448,131.82,131.78,8.27833613]
[1765707670603,7.2352448,131.82,131.78,8.27833613]
[1765707670905,0.66,131.81,131.78,8.27833613]
[1765707671106,0.66,131.81,131.78,69.47833613]
[1765707672373,0.66,131.84,131.8,2.20961716]
[1765707672613,14.82071539,131.85,131.81,0.69]
[1765707672784,8.24454247,131.85,131.81,0.69]
[1765707672986,15.48135099,131.85,131.81,0.69]
[1765707673181,8.24454247,131.85,131.81,0.69]
[1765707673388,13.27216397,131.85,131.81,0.69]
[1765707673777,13.27216397,131.85,131.81,8.27657376]
[1765707673977,5.0276215,131.85,131.82,0.69]
[1765707674190,5.6876215,131.86,131.82,2.89961716]
[1765707674721,0.66,131.85,131.82,2.89961716]
[1765707674911,0.66,131.85,131.82,0.69]
[1765707675082,50.0,131.84,131.82,0.69]
[1765707675286,50.0,131.84,131.83,7.58552681]
[1765707675616,4.46139832,131.84,131.83,7.58552681]
[1765707676206,13.7070912,131.86,131.83,7.58552681]
[1765707677299,13.0470912,131.86,131.83,7.58552681]
[1765707677497,0.66,131.85,131.83,7.58552681]
[1765707677891,13.0470912,131.86,131.82,7.58610226]
[1765707678103,10.45242464,131.88,131.84,0.69]
[1765707678605,9.79242464,131.88,131.84,0.69]
[1765707678807,0.66,131.87,131.84,0.69]
[1765707679814,22.83884825,131.89,131.84,0.69]
[1765707679978,23.49884825,131.89,131.85,7.58437618]
[1765707680385,0.66,131.88,131.85,8.27437618]
[1765707680585,2.86961716,131.88,131.85,8.27437618]
[1765707681212,2.86961716,131.87,131.83,70.19]
[1765707681712,0.66,131.86,131.83,70.19]
[1765707682508,2.20961716,131.87,131.83,77.08531042]
[1765707682699,2.86961716,131.87,131.84,8.27489455]
[1765707682901,2.20961716,131.87,131.83,8.3]
[1765707683107,0.66,131.86,131.83,16.57536292]
[1765707683615,2.86961716,131.87,131.83,16.57536292]
[1765707684112,2.86961716,131.87,131.84,0.69]
[1765707684490,2.20961716,131.88,131.84,8.27483019]
[1765707684689,2.86961716,131.88,131.84,8.27483019]
[1765707684914,0.69,131.87,131.84,8.27483019]
[1765707685207,2.89961716,131.87,131.84,7.58483019]
[1765707685611,0.69,131.86,131.83,16.60536739]
[1765707685796,0.69,131.86,131.84,0.66]
[1765707685797,2.20961716,131.86,131.84,0.66]
[1765707685992,7.95991079,131.87,131.84,0.66]
[1765707686185,7.95991079,131.87,131.84,8.24481902]
[1765707686186,5.03029363,131.87,131.84,8.24481902]
[1765707686399,7.95991079,131.88,131.84,8.24481902]
[1765707686800,0.72,131.87,131.84,8.24481902]
[1765707688135,5.03029363,131.88,131.84,7.58481902]
[1765707688316,16.6215584,131.9,131.85,0.66]
[1765707688619,5.74913719,131.89,131.85,0.66]
[1765707688826,5.74913719,131.89,131.85,8.24392467]
[1765707689026,0.72,131.88,131.85,8.24392467]
[1765707689407,9.79117556,131.9,131.86,0.66]
[1765707689611,10.51117556,131.9,131.86,0.66]
[1765707689908,9.79117556,131.9,131.86,0.66]
[1765707690102,0.72,131.89,131.86,8.24373224]
[1765707693520,3.45237997,131.87,131.85,7.58437618]
[1765707693726,8.30217923,131.89,131.85,7.58437618]
[1765707693727,3.45237997,131.88,131.85,7.58437618]
[1765707693910,4.17237997,131.88,131.85,7.58437618]
[1765707694116,4.17237997,131.88,131.85,8.24437618]
[1765707695217,3.45237997,131.88,131.86,8.24376708]
[1765707695427,11.0345592,131.89,131.86,8.24376708]
[1765707695617,11.7545592,131.89,131.86,8.24376708]
[1765707695813,8.80994492,131.91,131.86,11.03614705]
[1765707696053,0.72,131.9,131.87,0.66]
[1765707696359,4.17237997,131.9,131.87,0.66]
[1765707697341,11.75404655,131.9,131.87,0.66]
[1765707698114,11.75404655,131.9,131.87,8.24305385]
[1765707698115,0.72,131.9,131.87,8.24305385]
[1765707698828,8.30153649,131.9,131.87,0.66]
[1765707699114,11.75391646,131.9,131.87,0.66]
[1765707702449,50.0,131.89,131.87,0.66]
[1765707702655,11.75391646,131.9,131.87,0.66]
[1765707704227,8.30153649,131.9,131.87,0.66]
[1765707704419,11.75391646,131.9,131.87,0.66]
[1765707705141,11.03391646,131.9,131.87,0.66]
[1765707705343,0.72,131.89,131.87,0.66]